bitfinex/quotes_SOLUSD_20250222
["timestamp","ask_amount","ask_price","bid_price","bid_amount"]
[1740221060904,0.063,174.12,174.11,51.7186669]
[1740221061226,0.063,174.12,174.11,133.2186669]
[1740221061732,0.063,174.12,174.11,138.9620669]
[1740221064623,0.063,174.12,174.11,133.2186669]
[1740221064848,0.063,174.12,174.11,94.56901804]
[1740221065023,0.063,174.12,174.11,92.94231804]
[1740221065224,0.063,174.12,174.11,81.5]
[1740221065826,0.063,174.12,174.09,92.94231804]
[1740221066214,0.063,174.12,174.1,11.44231804]
[1740221067235,0.063,174.12,174.11,11.44231804]
[1740221067733,0.063,174.12,174.11,30.0919669]
[1740221068036,0.063,174.12,174.11,35.8353669]
[1740221071735,0.063,174.12,174.11,117.3353669]
[1740221072738,0.063,174.12,174.11,98.68571804]
[1740221073526,0.063,174.12,174.11,87.2434]
[1740221073724,0.063,174.12,174.11,98.68571804]
[1740221077017,0.063,174.12,174.11,92.94231804]
[1740221077222,0.063,174.12,174.11,81.5]
[1740221077827,0.063,174.12,174.1,11.44231804]
[1740221079442,0.063,174.12,174.1,20.0]
[1740221080643,0.063,174.12,174.07,92.94231804]
[1740221081842,0.063,174.12,174.07,81.5]
[1740221082148,11.50531804,174.12,174.07,81.5]
[1740221082331,11.50531804,174.12,174.08,0.063]
[1740221082728,17.24861804,174.12,174.08,0.063]
[1740221085633,11.44231804,174.11,174.08,0.063]
[1740221086727,5.7438,174.1,174.08,0.063]
[1740221087558,17.18611804,174.1,174.08,0.063]
[1740221100252,11.44231804,174.09,174.08,0.063]
[1740221102381,17.18641804,174.09,174.08,0.063]
[1740221104647,17.18611804,174.1,174.08,0.063]
[1740221105069,11.44231804,174.1,174.08,0.063]
[1740221105273,0.063,174.12,174.08,0.063]
[1740221105547,0.063,174.12,174.1,11.44231804]
[1740221105755,0.063,174.12,174.08,11.50531804]
[1740221106067,0.03,174.09,174.08,11.50531804]
[1740221107473,0.03,174.09,174.08,17.24971804]
[1740221108270,0.03,174.09,174.08,98.74971804]
[1740221108463,0.03,174.09,174.08,117.3993669]
[1740221111775,0.03,174.09,174.08,105.95704886]
[1740221111959,0.03,174.09,174.08,117.3993669]
[1740221115275,0.063,174.12,174.08,118.3992669]
[1740221115457,0.063,174.12,174.11,30.0919669]
[1740221115653,0.063,174.12,174.11,113.1123669]
[1740221115871,0.0001,174.12,174.11,114.1122669]
[1740221117283,0.0001,174.12,174.11,119.8556669]
[1740221118260,0.0001,174.12,174.11,120.8556669]
[1740221120985,0.063,174.15,174.14,20.0]
[1740221120986,0.0001,174.15,174.14,20.0]
[1740221121156,0.0001,174.15,174.14,56.6721669]
[1740221122181,0.0001,174.15,174.14,62.4146669]
[1740221125289,0.063,174.24,174.18,20.0]
[1740221125469,0.063,174.24,174.18,112.94231804]
[1740221125791,11.44231804,174.23,174.18,101.5]
[1740221126272,11.44231804,174.23,174.18,107.2411]
[1740221127173,11.50531804,174.24,174.18,107.2411]
[1740221127582,0.063,174.24,174.18,107.2411]
[1740221127887,0.063,174.24,174.18,118.68341804]
[1740221129894,0.063,174.24,174.19,30.0919669]
[1740221130093,0.063,174.24,174.2,11.44231804]
[1740221131179,0.063,174.24,174.21,5.7401]
[1740221132285,0.063,174.24,174.21,17.18241804]
[1740221134093,0.063,174.24,174.21,5.7401]
[1740221135803,0.063,174.24,174.2,99.45821804]
[1740221135804,0.063,174.24,174.2,92.94231804]
[1740221136099,0.063,174.24,174.2,87.2404]
[1740221139298,0.063,174.24,174.2,98.68271804]
[1740221139485,0.063,174.24,174.2,87.2404]
[1740221148898,0.063,174.24,174.2,98.68271804]
[1740221149922,0.063,174.24,174.2,87.2404]
[1740221151814,0.063,174.24,174.2,98.68271804]
[1740221153631,0.063,174.24,174.2,105.13591804]
[1740221158123,0.063,174.24,174.2,93.6936]
[1740221160219,0.063,174.24,174.2,105.13591804]
[1740221160420,0.063,174.24,174.2,93.6936]
[1740221163843,0.063,174.24,174.21,24.38954886]
[1740221164050,0.063,174.24,174.21,35.8318669]
[1740221165124,0.063,174.24,174.21,24.38954886]
[1740221165735,0.063,174.24,174.21,5.7399]
[1740221166904,0.063,174.24,174.21,87.2399]
[1740221168109,11.50531804,174.24,174.21,81.5]
[1740221171728,11.44231804,174.23,174.19,87.2408]
[1740221172617,11.44231804,174.22,174.19,81.5]
[1740221173616,11.44231804,174.23,174.19,87.2407]
[1740221175738,11.44231804,174.22,174.19,81.5]
[1740221179430,11.44231804,174.23,174.19,81.5]
[1740221179729,11.44231804,174.22,174.19,81.5]
[1740221182621,11.44231804,174.23,174.19,81.5]
[1740221185943,11.44231804,174.22,174.19,81.5]
[1740221187753,0.063,174.24,174.19,81.5]
[1740221187754,11.44231804,174.23,174.19,81.5]
[1740221187927,11.50531804,174.24,174.19,87.2407]
[1740221192927,0.063,174.24,174.19,98.68301804]
[1740221193241,0.063,174.24,174.2,11.44231804]
[1740221193550,11.50531804,174.24,174.19,87.2407]
[1740221195029,11.44231804,174.23,174.19,81.5]
[1740221195930,11.44231804,174.22,174.19,81.5]
[1740221196132,11.44231804,174.2,174.16,81.563]
[1740221196332,11.44231804,174.18,174.16,0.063]
[1740221196633,11.44231804,174.19,174.16,0.063]
[1740221197550,11.44231804,174.17,174.16,0.063]
[1740221198652,17.18381804,174.17,174.16,0.063]
[1740221202937,19.99008491,174.17,174.16,0.063]
[1740221203740,20.99008491,174.17,174.16,0.063]
[1740221204464,66.75935707,174.17,174.16,0.063]
[1740221204840,20.0,174.14,174.11,0.063]
[1740221205062,11.44231804,174.12,174.11,0.063]
[1740221205846,17.18541804,174.12,174.11,0.063]
[1740221213760,20.0191306,174.12,174.11,0.063]
[1740221217869,8.57681256,174.12,174.11,0.063]
[1740221218047,11.44231804,174.12,174.11,0.063]
[1740221218247,11.44231804,174.13,174.11,0.063]
[1740221218643,26.54807072,174.21,174.11,0.063]
[1740221218644,11.44231804,174.15,174.11,0.063]
[1740221219666,11.44231804,174.16,174.11,0.063]
[1740221220055,11.44231804,174.16,174.11,5.8064]
[1740221220577,11.44231804,174.15,174.11,0.063]
[1740221220780,11.44231804,174.12,174.11,0.063]
[1740221222878,17.18541804,174.12,174.11,0.063]
[1740221224283,117.0350669,174.12,174.11,0.063]
[1740221225781,98.38541804,174.12,174.11,0.063]
[1740221243599,117.0350669,174.12,174.11,0.063]
[1740221243782,38.64964886,174.09,174.08,0.063]
[1740221243984,50.0919669,174.09,174.08,0.063]
[1740221244285,1.0,174.08,174.05,0.03]
[1740221244467,75.86123906,174.06,174.05,0.03]
[1740221245787,81.60633906,174.06,174.05,0.03]
[1740221246484,82.60633906,174.06,174.05,0.03]
[1740221247689,90.11135893,174.06,174.05,0.03]
[1740221249099,20.0,174.03,173.98,0.063]
[1740221249270,11.44231804,173.99,173.98,0.063]
[1740221250874,17.18971804,173.99,173.98,0.063]
[1740221253000,11.44231804,173.99,173.98,0.063]
[1740221253381,17.18971804,173.99,173.98,0.063]
[1740221254596,35.8393669,173.99,173.98,0.063]
[1740221262001,11.44231804,173.99,173.98,0.063]
[1740221269005,35.8393669,173.99,173.98,0.063]
[1740221269596,42.34438677,173.99,173.98,0.063]
[1740221270021,90.11365893,173.99,173.98,0.063]
[1740221270387,97.26466403,173.99,173.98,0.063]
[1740221271309,20.0,173.96,173.93,0.063]
[1740221271611,11.44231804,173.94,173.93,0.063]
[1740221273298,30.0919669,173.94,173.93,0.063]
[1740221273511,35.8410669,173.94,173.93,0.063]
[1740221274689,42.34608677,173.94,173.93,0.063]
[1740221275103,49.85726715,173.94,173.93,0.063]
[1740221278517,52.76280204,173.94,173.93,0.063]
[1740221278694,45.25162166,173.94,173.93,0.063]
[1740221279125,46.25162166,173.94,173.93,0.063]
[1740221279429,38.64964886,173.91,173.9,0.063]
[1740221279597,50.0919669,173.91,173.9,0.063]
[1740221280924,55.8420669,173.91,173.9,0.063]
[1740221284520,56.8420669,173.91,173.9,0.063]
[1740221284820,56.8420669,173.91,173.87,0.03]
[1740221284821,19.64964886,173.9,173.87,0.03]
[1740221285039,11.44231804,173.88,173.87,0.03]
[1740221286217,17.19331804,173.88,173.87,0.03]
[1740221287630,11.44231804,173.88,173.87,0.03]
[1740221290064,35.8429669,173.88,173.87,0.03]
[1740221290534,81.61223906,173.88,173.87,0.03]
[1740221293009,163.306463,173.88,173.87,0.03]
[1740221293208,170.5575792,173.88,173.87,0.03]
[1740221293433,178.06259907,173.88,173.87,0.03]
[1740221294012,50.0919669,173.86,173.85,0.03]
[1740221294213,59.67103617,173.86,173.85,0.03]
[1740221294425,25.92455185,173.85,173.8,0.063]
[1740221294711,11.44231804,173.81,173.8,0.063]
[1740221294930,15.98231804,173.81,173.8,0.063]
[1740221295612,34.6319669,173.81,173.8,0.063]
[1740221295810,40.3853669,173.81,173.8,0.063]
[1740221296239,34.6319669,173.81,173.8,0.063]
[1740221296533,15.98231804,173.81,173.8,0.063]
[1740221298019,21.73571804,173.81,173.8,0.063]
[1740221298827,40.3853669,173.81,173.8,0.063]
[1740221299551,55.05701006,173.81,173.8,0.063]
[1740221301539,56.05701006,173.81,173.8,0.063]
[1740221302021,102.82628222,173.81,173.8,0.063]
[1740221302338,57.05701006,173.81,173.8,0.063]
[1740221302708,102.82628222,173.81,173.8,0.063]
[1740221303122,101.82628222,173.81,173.8,0.063]
[1740221303331,55.05701006,173.81,173.8,0.063]
[1740221303522,46.88767163,173.81,173.8,0.063]
[1740221304035,55.36034339,173.81,173.8,0.063]
[1740221306543,134.16034339,173.81,173.8,0.063]
[1740221307619,136.16034339,173.81,173.8,0.063]
[1740221307822,181.92961555,173.81,173.8,0.063]
[1740221309241,180.92961555,173.81,173.8,0.063]
[1740221309622,181.92961555,173.81,173.8,0.063]
[1740221310135,179.92961555,173.81,173.8,0.063]
[1740221310334,180.92961555,173.81,173.8,0.063]
[1740221310845,179.92961555,173.81,173.8,0.063]
[1740221311043,180.92961555,173.81,173.8,0.063]
[1740221311224,181.92961555,173.81,173.8,0.063]
[1740221312248,20.0,173.78,173.75,0.03]
[1740221312444,11.44231804,173.76,173.75,0.03]
[1740221314254,86.9547,173.77,173.75,0.03]
[1740221314255,92.64231804,173.77,173.75,0.03]
[1740221315650,11.44231804,173.76,173.75,0.03]
[1740221318251,92.64231804,173.77,173.75,0.03]
[1740221318558,11.44231804,173.79,173.76,6.1586]
[1740221319152,11.44231804,173.8,173.76,11.9136]
[1740221319956,92.64231804,173.81,173.76,11.9136]
[1740221320153,81.2,173.81,173.77,1.5188]
[1740221320453,81.2,173.81,173.77,12.96111804]
[1740221320649,15.98231804,173.83,173.77,12.96111804]
[1740221321559,15.98231804,173.83,173.78,5.7544]
[1740221322059,11.44231804,173.84,173.78,17.19671804]
[1740221322452,16.04531804,173.85,173.79,17.72201804]
[1740221322644,0.063,173.85,173.8,12.96111804]
[1740221323554,0.063,173.85,173.81,17.19571804]
[1740221323854,0.063,173.85,173.82,17.72201804]
[1740221324237,0.063,173.85,173.84,1.5188]
[1740221324436,11.44231804,173.9,173.84,12.96111804]
[1740221325663,11.44231804,173.9,173.85,5.752]
[1740221326546,11.50531804,173.92,173.86,17.52831804]
[1740221326768,0.063,173.92,173.87,11.44231804]
[1740221326969,11.50531804,173.92,173.86,6.086]
[1740221327463,11.44231804,173.89,173.86,6.086]
[1740221329440,11.44231804,173.9,173.86,6.086]
[1740221332061,5.7505,173.9,173.86,6.086]
[1740221332260,11.44231804,173.89,173.86,6.086]
[1740221333242,11.44231804,173.88,173.86,6.086]
[1740221333447,11.44231804,173.87,173.86,6.086]
[1740221333745,11.44231804,173.88,173.86,6.086]
[1740221335867,85.74,173.89,173.86,6.086]
[1740221336662,85.74,173.89,173.86,11.8376]
[1740221337446,81.2,173.89,173.86,6.086]
[1740221338454,92.64231804,173.89,173.84,7.2711]
[1740221339063,11.44231804,173.89,173.84,7.2711]
[1740221339554,17.19301804,173.89,173.84,1.5188]
[1740221339860,11.44231804,173.87,173.84,1.5488]
[1740221341471,11.44231804,173.86,173.84,1.5488]
[1740221342354,11.44231804,173.86,173.84,0.03]
[1740221344050,11.44231804,173.85,173.84,0.03]
[1740221344264,30.0919669,173.85,173.84,0.03]
[1740221345477,35.8439669,173.85,173.84,0.03]
[1740221347670,114.6439669,173.85,173.84,0.03]
[1740221347872,123.11663866,173.85,173.84,0.03]
[1740221350134,90.24231804,173.85,173.84,0.03]
[1740221350257,78.8,173.85,173.84,0.03]
[1740221350996,97.18231804,173.88,173.84,0.03]
[1740221351162,81.2,173.88,173.85,6.4832]
[1740221351562,11.44231804,173.87,173.85,6.4832]
[1740221351762,98.39351804,173.88,173.84,0.03]
[1740221351989,92.64231804,173.88,173.84,0.03]
[1740221352162,0.063,173.86,173.84,0.03]
[1740221353785,81.2,173.85,173.84,0.03]
[1740221353986,92.64231804,173.85,173.84,0.03]
[1740221356502,114.6439669,173.85,173.84,0.03]
[1740221356669,119.16128222,173.85,173.84,0.03]
[1740221356869,124.40552755,173.85,173.84,0.03]
[1740221357305,45.60552755,173.85,173.84,0.03]
[1740221357895,52.12577186,173.85,173.84,0.03]
[1740221358706,58.60085433,173.85,173.84,0.03]
[1740221359986,19.64964886,173.84,173.75,0.03]
[1740221360190,17.91740051,173.8,173.75,0.03]
[1740221361987,99.11740051,173.79,173.75,0.03]
[1740221362632,81.2,173.79,173.75,0.03]
[1740221365846,81.2,173.78,173.75,0.03]
[1740221375648,4.54,173.77,173.75,0.03]
[1740221375830,81.2,173.76,173.75,0.03]
[1740221376035,101.25740051,173.77,173.75,0.03]
[1740221376857,83.34,173.77,173.75,0.03]
[1740221384498,78.8,173.77,173.75,0.03]
[1740221386681,81.2,173.78,173.75,0.03]
[1740221392799,11.47015632,173.79,173.75,0.03]
[1740221393173,97.21015632,173.8,173.75,0.03]
[1740221397887,85.74,173.8,173.75,0.03]
[1740221399097,97.21015632,173.8,173.75,0.03]
[1740221400404,102.96385632,173.8,173.75,0.03]
[1740221401612,97.21015632,173.8,173.75,0.03]
[1740221420324,85.74,173.8,173.75,0.03]
[1740221420826,100.25536065,173.8,173.75,0.03]
[1740221421121,111.72551697,173.8,173.75,0.03]
[1740221422017,105.97171697,173.8,173.75,0.03]
[1740221423022,11.47015632,173.79,173.75,0.03]
[1740221424227,105.97171697,173.8,173.75,0.03]
[1740221425311,94.50156065,173.8,173.75,0.03]
[1740221429031,105.97171697,173.8,173.75,0.03]
[1740221429834,11.47015632,173.79,173.75,0.03]
[1740221430019,11.47015632,173.78,173.75,0.03]
[1740221431211,92.67015632,173.78,173.75,0.03]
[1740221435242,98.42455632,173.78,173.75,0.03]
[1740221435531,92.67015632,173.78,173.75,0.03]
[1740221436134,98.42455632,173.78,173.75,0.03]
[1740221438038,11.47015632,173.76,173.75,0.03]
[1740221440018,98.42495632,173.77,173.75,0.03]
[1740221441336,81.2,173.77,173.75,0.03]
[1740221442338,92.67015632,173.77,173.75,0.03]
[1740221442517,98.42485632,173.77,173.75,0.03]
[1740221442717,11.47015632,173.76,173.75,0.03]
[1740221443230,92.67015632,173.76,173.75,0.03]
[1740221444936,98.42515632,173.76,173.75,0.03]
[1740221445839,113.70424614,173.76,173.75,0.03]
[1740221448746,96.47908982,173.76,173.75,0.03]
[1740221448923,15.27908982,173.76,173.75,0.03]
[1740221449333,26.74924614,173.76,173.75,0.03]
[1740221450143,32.50424614,173.76,173.75,0.03]
[1740221450340,26.74924614,173.76,173.75,0.03]
[1740221450722,32.50424614,173.76,173.75,0.03]
[1740221452334,26.74924614,173.76,173.75,0.03]
[1740221453225,32.50424614,173.76,173.75,0.03]
[1740221454465,32.50424614,173.76,173.74,0.03]
[1740221454647,99.67305931,173.75,173.74,0.03]
[1740221455653,105.42835931,173.75,173.74,0.03]
[1740221456148,81.2,173.74,173.7,7.706]
[1740221456361,11.47015632,173.72,173.7,7.706]
[1740221456568,94.21503621,173.73,173.7,7.706]
[1740221457047,82.74487989,173.73,173.7,7.706]
[1740221459753,94.21503621,173.73,173.7,7.706]
[1740221459963,81.2,173.73,173.7,24.93305632]
[1740221460261,160.0,173.79,173.72,11.47015632]
[1740221460555,81.2,173.79,173.75,11.47015632]
[1740221461347,81.2,173.79,173.76,5.755]
[1740221462454,81.2,173.79,173.75,11.47015632]
[1740221462647,81.2,173.79,173.74,17.22555632]
[1740221463358,81.2,173.79,173.75,11.47015632]
[1740221463655,81.2,173.79,173.75,17.22545632]
[1740221465957,81.2,173.79,173.75,5.7553]
[1740221468555,81.2,173.79,173.77,11.47015632]
[1740221468746,85.72,173.83,173.78,11.47015632]
[1740221468948,81.2,173.82,173.79,11.47015632]
[1740221469760,81.2,173.82,173.79,17.22395632]
[1740221470855,81.2,173.82,173.79,11.47015632]
[1740221471655,81.263,173.82,173.79,11.47015632]
[1740221473264,81.263,173.82,173.79,17.22405632]
[1740221473448,81.263,173.82,173.79,11.47015632]
[1740221477164,0.063,173.82,173.81,19.25315632]
[1740221477344,0.063,173.82,173.81,7.783]
[1740221480148,0.063,173.82,173.81,19.25315632]
[1740221483267,0.063,173.82,173.81,25.00655632]
[1740221483460,0.063,173.82,173.81,19.25315632]
[1740221489572,0.063,173.82,173.76,81.5]
[1740221489573,0.063,173.82,173.76,7.6623]
[1740221489758,0.063,173.82,173.78,11.47015632]
[1740221490276,0.063,173.82,173.79,11.47015632]
[1740221492077,0.063,173.82,173.8,11.47015632]
[1740221495349,0.063,173.82,173.81,11.47015632]
[1740221497279,0.063,173.82,173.8,11.47015632]
[1740221506589,0.063,173.82,173.81,11.47015632]
[1740221509891,0.063,173.82,173.8,11.47015632]
[1740221510076,0.063,173.82,173.76,7.6623]
[1740221510586,0.063,173.82,173.78,11.47015632]
[1740221510903,0.063,173.82,173.79,11.47015632]
[1740221512395,5.816,173.82,173.79,11.47015632]
[1740221513093,5.816,173.82,173.79,11.32830646]
[1740221514010,5.816,173.82,173.78,11.47015632]
[1740221516588,0.063,173.82,173.78,11.47015632]
[1740221516786,0.063,173.82,173.79,11.47015632]
[1740221522885,0.063,173.82,173.78,11.47015632]
[1740221523308,0.063,173.82,173.79,11.47015632]
[1740221526020,0.063,173.82,173.8,11.47015632]
[1740221526913,0.063,173.82,173.79,11.47015632]
[1740221529602,0.063,173.82,173.8,11.47015632]
[1740221531412,0.063,173.82,173.79,11.47015632]
[1740221538486,81.263,173.82,173.78,0.03]
[1740221538692,87.0162,173.82,173.78,0.03]
[1740221539108,85.7,173.81,173.78,0.03]
[1740221539422,81.2,173.8,173.78,0.03]
[1740221540393,98.42405632,173.8,173.78,0.03]
[1740221540799,86.9539,173.8,173.78,0.03]
[1740221541195,81.2,173.8,173.79,11.47015632]
[1740221541792,0.063,173.82,173.79,11.47015632]
[1740221542092,0.063,173.82,173.81,11.47015632]
[1740221545509,0.063,173.82,173.79,11.50015632]
[1740221547711,0.063,173.82,173.79,0.03]
[1740221547911,0.063,173.82,173.79,11.50015632]
[1740221550223,0.063,173.82,173.8,11.47015632]
[1740221550796,0.063,173.82,173.79,11.50015632]
[1740221551005,0.063,173.82,173.81,11.47015632]
[1740221552021,0.063,173.82,173.81,17.22355632]
[1740221553525,0.063,173.82,173.81,5.7534]
[1740221553725,0.063,173.82,173.81,17.22355632]
[1740221557324,80.952,173.87,173.81,17.22355632]
[1740221557629,80.952,173.87,173.86,11.47015632]
[1740221558824,80.952,173.87,173.85,11.47015632]
[1740221559223,80.952,173.87,173.86,11.47015632]
[1740221560530,80.952,173.87,173.85,11.47015632]
[1740221567817,78.863,173.89,173.82,11.47015632]
[1740221567818,80.952,173.86,173.82,11.47015632]
[1740221568734,80.952,173.86,173.83,11.47015632]
[1740221569228,81.015,173.86,173.83,11.47015632]
[1740221570636,81.015,173.86,173.82,11.47015632]
[1740221570836,86.7668,173.86,173.81,11.47015632]
[1740221571217,81.015,173.86,173.81,11.47015632]
[1740221571417,86.7667,173.86,173.81,11.47015632]
[1740221572336,4.5,173.85,173.8,11.47015632]
[1740221572526,80.952,173.84,173.8,11.47015632]
[1740221574043,86.7044,173.84,173.79,11.50015632]
[1740221574338,80.952,173.84,173.8,11.47015632]
[1740221576926,80.952,173.83,173.8,11.47015632]
[1740221578646,80.952,173.83,173.81,11.47015632]
[1740221579951,80.952,173.83,173.8,11.47015632]
[1740221581350,80.952,173.83,173.81,11.47015632]
[1740221582046,80.952,173.83,173.82,11.47015632]
[1740221582242,81.015,173.86,173.82,11.47015632]
[1740221582452,81.015,173.86,173.85,11.47015632]
[1740221583337,81.015,173.86,173.85,17.22215632]
[1740221583852,81.015,173.86,173.85,11.47015632]
[1740221584044,81.015,173.86,173.84,11.47015632]
[1740221585032,81.015,173.86,173.83,11.47015632]
[1740221585628,80.952,173.85,173.83,11.47015632]
[1740221587145,80.952,173.85,173.82,11.47015632]
[1740221591435,80.952,173.84,173.8,11.47015632]
[1740221591635,80.952,173.83,173.8,11.47015632]
[1740221592058,80.952,173.83,173.82,0.03]
[1740221593055,86.7047,173.83,173.82,0.03]
[1740221593257,98.17485632,173.83,173.82,0.03]
[1740221593453,106.30526697,173.83,173.82,0.03]
[1740221593763,111.46217411,173.83,173.82,0.03]
[1740221594061,127.65982297,173.83,173.82,0.03]
[1740221594972,127.65982297,173.83,173.79,0.03]
[1740221594973,21.0,173.8,173.79,0.03]
[1740221595134,57.61778817,173.8,173.79,0.03]
[1740221595338,64.34355712,173.8,173.79,0.0001]
[1740221596973,70.09725712,173.8,173.79,0.0001]
[1740221597947,73.96185066,173.8,173.79,0.0001]
[1740221598147,75.58285066,173.8,173.79,0.0001]
[1740221598359,19.64964886,173.79,173.78,0.0001]
[1740221598548,97.35661006,173.79,173.78,0.0001]
[1740221598748,20.0,173.73,173.72,0.03]
[1740221598963,54.61980518,173.73,173.72,0.03]
[1740221599274,76.23198478,173.73,173.72,0.03]
[1740221599765,77.23198478,173.73,173.72,0.0001]
[1740221599957,78.85298478,173.73,173.72,0.0001]
[1740221600474,20.64964886,173.71,173.7,0.0001]
[1740221600644,78.00043046,173.71,173.7,0.0001]
[1740221600844,93.08321409,173.71,173.7,0.0001]
[1740221601455,100.48271409,173.71,173.7,0.0001]
[1740221604146,103.25777784,173.71,173.7,0.0001]
[1740221605155,57.37715256,173.71,173.7,0.0001]
[1740221605664,103.25777784,173.71,173.7,0.0001]
[1740221608764,57.37715256,173.71,173.7,0.0001]
[1740221611481,23.14964886,173.71,173.7,0.0001]
[1740221616075,96.88,173.74,173.71,0.1148]
[1740221616280,101.38,173.74,173.71,11.47015632]
[1740221616464,18.64964886,173.73,173.7,7.7067]
[1740221617575,30.11980518,173.73,173.7,7.7067]
[1740221617763,18.64964886,173.73,173.7,7.7067]
[1740221617977,24.5,173.74,173.7,13.5784]
[1740221618156,4.5,173.74,173.71,0.1148]
[1740221618351,4.5,173.74,173.7,7.7067]
[1740221618686,30.11980518,173.73,173.7,7.7067]
[1740221618854,18.64964886,173.73,173.7,7.7067]
[1740221621473,159.7,173.72,173.7,7.7067]
[1740221627286,81.2,173.71,173.7,7.7067]
[1740221627960,81.2,173.71,173.7,1.5741]
[1740221628170,81.2,173.71,173.7,0.0001]
[1740221631983,81.2,173.71,173.7,0.1149]
[1740221636192,81.2,173.71,173.7,0.0001]
[1740221636398,86.9567,173.71,173.7,0.0001]
[1740221639177,5.7567,173.71,173.7,0.0001]
[1740221639800,5.8197,173.71,173.7,0.0001]
[1740221640185,0.063,173.71,173.7,0.0001]
[1740221646900,24.46934886,173.71,173.7,0.0001]
[1740221651830,35.93950518,173.71,173.7,0.0001]
[1740221652333,43.53473262,173.71,173.7,0.0001]
[1740221653029,46.13393262,173.71,173.7,0.0001]
[1740221655536,92.0145579,173.71,173.7,0.0001]
[1740221655916,40.53484886,173.68,173.66,0.03]
[1740221656242,35.50500518,173.67,173.66,0.03]
[1740221656423,43.21503262,173.67,173.66,0.03]
[1740221656626,50.01214949,173.67,173.66,0.03]
[1740221656933,49.01214949,173.67,173.66,0.03]
[1740221657235,55.77014949,173.67,173.66,0.03]
[1740221658018,55.77014949,173.67,173.66,0.0001]
[1740221658343,19.53484886,173.66,173.65,0.0001]
[1740221658533,32.38242424,173.66,173.65,0.0001]
[1740221658735,32.38242424,173.66,173.61,0.03]
[1740221658736,19.53484886,173.65,173.64,0.0001]
[1740221658946,47.04064937,173.65,173.64,0.0001]
[1740221659165,266.54064937,173.65,173.64,0.0001]
[1740221659320,272.29934937,173.65,173.64,0.0001]
[1740221662854,52.79934937,173.65,173.64,0.0001]
[1740221665773,20.8852,173.62,173.61,0.03]
[1740221665980,52.65812035,173.62,173.61,0.03]
[1740221666265,111.92127465,173.62,173.61,0.03]
[1740221666449,111.92127465,173.62,173.6,0.03]
[1740221666450,78.53874563,173.61,173.6,0.03]
[1740221666650,84.6918608,173.61,173.6,0.03]
[1740221667270,55.88080518,173.58,173.57,0.03]
[1740221667576,64.38655472,173.58,173.57,0.03]
[1740221667951,65.27175472,173.58,173.57,0.03]
[1740221670249,66.27175472,173.58,173.57,0.03]
[1740221670449,73.06887159,173.58,173.57,0.03]
[1740221674276,72.06887159,173.58,173.57,0.03]
[1740221674771,23.14964886,173.58,173.57,0.03]
[1740221675677,43.14964886,173.58,173.57,0.03]
[1740221675877,24.5,173.58,173.57,0.03]
[1740221676066,20.0,173.58,173.57,0.03]
[1740221676270,21.73085632,173.59,173.57,0.03]
[1740221676665,27.40321747,173.59,173.57,0.03]
[1740221676972,30.11980518,173.58,173.57,0.03]
[1740221677167,38.39377288,173.58,173.57,0.03]
[1740221678179,44.15477288,173.58,173.57,0.03]
[1740221681081,51.83708975,173.58,173.57,0.03]
[1740221683472,51.83708975,173.58,173.57,0.0001]
[1740221697793,51.90008975,173.58,173.57,0.0001]
[1740221697975,51.01488975,173.58,173.57,0.0001]
[1740221701693,51.01488975,173.58,173.52,0.03]